fUSD/lending_fUSD_20251117
["ID","MTS","AMOUNT","RATE_DAILY","PERIOD"]
[394165320,1763338253395,-515.27961803,0.00036999,5]
[394165321,1763338253405,-500.0,0.00036999,5]
[394165322,1763338253415,-373.07297731,0.00036999,5]
[394165323,1763338253424,-500.0,0.00036999,5]
[394165324,1763338253434,-250.0,0.00036999,5]
[394165325,1763338253444,-500.0,0.00036999,5]
[394165326,1763338253454,-386.87667747,0.00036999,5]
[394165327,1763338253463,-500.0,0.00036999,5]
[394165328,1763338253473,-250.0,0.00036999,5]
[394165329,1763338253484,-721.12765535,0.00036999,5]
[394165330,1763338253494,-500.0,0.00036999,5]
[394165331,1763338253504,-547.5387694,0.00036999,5]
[394165332,1763338253514,-500.0,0.00036999,5]
[394165333,1763338253524,-747.8093786,0.00036999,5]
[394165334,1763338253534,-500.0,0.00036999,5]
[394165335,1763338253544,-500.0,0.00036999,5]
[394165336,1763338253554,-775.47832561,0.00036999,5]
[394165337,1763338253565,-500.0,0.00036999,5]
[394165338,1763338253575,-500.0,0.00036999,5]
[394165339,1763338253585,-289.75384376,0.00036999,5]
[394165340,1763338253596,-500.0,0.00036999,5]
[394165341,1763338253606,-500.0,0.00036999,5]
[394165342,1763338253619,-500.0,0.00036999,5]
[394165343,1763338253629,-500.0,0.00036999,5]
[394165344,1763338253640,-2000.0,0.00036999,5]
[394165345,1763338253650,-500.0,0.00036999,5]
[394165346,1763338253660,-2000.0,0.00036999,5]
[394165347,1763338253671,-500.0,0.00036999,5]
[394165348,1763338253686,-1312.87401857,0.00036999,5]
[394165349,1763338253696,-500.0,0.00036999,5]
[394165350,1763338253706,-277.35679052,0.00036999,5]
[394165351,1763338253717,-471.5812041,0.00036999,5]
[394165352,1763338253727,-287.61899177,0.00036999,5]
[394165353,1763338253736,-298.26089446,0.00036999,5]
[394165354,1763338253747,-309.29654756,0.00036999,5]
[394165355,1763338253758,-320.74051982,0.00036999,5]
[394165356,1763338253768,-250.0,0.00036999,5]
[394165357,1763338253778,-9552.16786547,0.00036999,5]
[394165358,1763338253788,-332.60791905,0.00036999,5]
[394165359,1763338253798,-250.0,0.00036999,5]
[394165360,1763338253808,-500.0,0.00036999,5]
[394165361,1763338253818,-9905.5980765,0.00036999,5]
[394165362,1763338253828,-344.91441206,0.00036999,5]
[394165363,1763338253837,-250.0,0.00036999,5]
[394165364,1763338253847,-500.0,0.00036999,5]
[394165365,1763338253857,-855.15458257,0.00036999,5]
[394165366,1763338253867,-357.6762453,0.00036999,5]
[394165367,1763338253877,-250.0,0.00036999,5]
[394165368,1763338253887,-500.0,0.00036999,5]
[394165369,1763338253896,-370.91026638,0.00036999,5]
[394165370,1763338253906,-250.0,0.00036999,5]
[394165371,1763338253916,-500.0,0.00036999,5]
[394165372,1763338253927,-384.63394623,0.00036999,5]
[394165373,1763338253937,-250.0,0.00036999,5]
[394165374,1763338253947,-500.0,0.00036999,5]
[394165375,1763338253957,-398.86540225,0.00036999,5]
[394165376,1763338253967,-250.0,0.00036999,5]
[394165377,1763338253977,-500.0,0.00036999,5]
[394165378,1763338253987,-250.0,0.00036999,5]
[394165379,1763338254071,-500.0,0.00036999,5]
[394165380,1763338254081,-250.0,0.00036999,5]
[394165381,1763338254091,-500.0,0.00036999,5]
[394165382,1763338254101,-250.0,0.00036999,5]
[394165383,1763338254111,-500.0,0.00036999,5]
[394165384,1763338254120,-250.0,0.00036999,5]
[394165385,1763338254130,-500.0,0.00036999,5]
[394165386,1763338254139,-500.0,0.00036999,5]
[394165387,1763338254149,-150.0,0.00036999,2]
[394165388,1763338254159,-150.0,0.00036999,5]
[394165389,1763338254168,-9875.89113228,0.00037,5]
[394165390,1763338254177,-416.07120376,0.00037,2]
[394165391,1763338254186,-150.0,0.00037,30]
[394165392,1763338254195,-2000.0,0.00037,2]
[394165393,1763338254204,-200.0,0.00037,2]
[394165394,1763338254213,-162.0,0.00037,7]
[394165395,1763338254222,-302.0,0.00037,7]
[394165396,1763338254232,-162.0,0.00037,7]
[394165397,1763338254242,-162.0,0.00037,7]
[394165398,1763338254252,-162.0,0.00037,7]
[394165399,1763338254261,-154.91008961,0.00037,7]
[394165400,1763338254271,-152.0,0.00037,7]
[394165401,1763338254280,-151.0,0.00037,7]
[394165402,1763338254290,-152.0,0.00037,7]
[394165403,1763338254299,-206.00835492,0.00037,7]
[394165404,1763338254309,-152.0,0.00037,7]
[394165405,1763338254318,-152.0,0.00037,7]
[394165406,1763338254328,-152.0,0.00037,7]
[394165407,1763338254337,-152.0,0.00037,7]
[394165408,1763338254347,-152.0,0.00037,7]
[394165409,1763338254356,-152.0,0.00037,7]
[394165410,1763338254366,-152.0,0.00037,7]
[394165411,1763338254375,-152.0,0.00037,7]
[394165412,1763338254384,-152.0,0.00037,7]
[394165413,1763338254394,-152.0,0.00037,7]
[394165414,1763338254403,-152.0,0.00037,7]
[394165415,1763338254412,-152.0,0.00037,7]
[394165416,1763338254421,-152.0,0.00037,7]
[394165417,1763338254431,-152.0,0.00037,7]
[394165418,1763338254441,-152.0,0.00037,7]
[394165419,1763338254449,-152.0,0.00037,7]
[394165420,1763338254459,-152.0,0.00037,7]
[394165421,1763338254468,-152.0,0.00037,7]
[394165422,1763338254478,-152.0,0.00037,7]
[394165423,1763338254487,-249.21860766,0.00037,7]
[394165424,1763338254497,-1026.16616422,0.00037,60]
[394165425,1763338254507,-151.0,0.00037,2]
[394165426,1763338254516,-200.0,0.00037,2]
[394165427,1763338254525,-151.0,0.00037,2]
[394165428,1763338254534,-251.14965466,0.00037,5]
[394165429,1763338254543,-479.06402154,0.00037,30]
[394165430,1763338254551,-200.0,0.00037,2]
[394165431,1763338254561,-150.0,0.00037,2]
[394165432,1763338254570,-175.94451,0.00037,2]
[394165433,1763338254580,-200.0,0.00037,2]
[394165434,1763338254590,-479.06402154,0.00037,120]
[394165435,1763338254599,-177.32,0.00037068,2]
[394165436,1763338254610,-177.32,0.00037068,2]
[394165437,1763338254621,-177.32,0.00037068,2]
[394165438,1763338254630,-995.65004,0.00037088,30]
[394165439,1763338254640,-2000.0,0.000371,2]
[394165440,1763338254650,-1155.91447324,0.000371,120]
[394165441,1763338254660,-29051.93641551,0.00037119,2]
[394165442,1763338254670,-150.0,0.0003713,2]
[394165443,1763338254683,-11231.11932975,0.0003716,2]
[394165444,1763338254692,-2596.0,0.0003718,30]
[394165445,1763338254701,-395.77,0.00037188,60]
[394165446,1763338254711,-787.47,0.000372,30]
[394165447,1763338254721,-181.22313928,0.000372,120]
[394165448,1763338254731,-181.22313926,0.000372,120]
[394165449,1763338254741,-181.22313926,0.000372,120]
[394165450,1763338254752,-181.22313926,0.000372,120]
[394165451,1763338254762,-500.0,0.0003726,2]
[394165452,1763338254771,-500.0,0.0003726,2]
[394165453,1763338254780,-500.0,0.0003726,2]
[394165454,1763338254789,-500.0,0.0003726,2]
[394165455,1763338254799,-218.96469231,0.0003726,2]
[394165456,1763338254808,-500.0,0.0003726,2]
[394165457,1763338254817,-1000.0,0.0003726,2]
[394165458,1763338254826,-3990.69,0.0003726,2]
[394165459,1763338254835,-199.68751384,0.0003726,2]
[394165460,1763338254844,-500.0,0.0003726,2]
[394165461,1763338254854,-300.0,0.0003726,2]
[394165462,1763338254863,-1006.13,0.0003726,2]
[394165463,1763338254872,-300.0,0.0003726,2]
[394165464,1763338254882,-500.0,0.0003726,2]
[394165465,1763338254892,-995.65004,0.00037288,30]
[394165466,1763338254901,-610.98,0.000373,14]
[394165467,1763338254911,-2000.0,0.000373,2]
[394165468,1763338254921,-1993.64613796,0.00037339,30]
[394165469,1763338254930,-1066.91097843,0.00037339,30]
[394165470,1763338254939,-1000.0,0.00037339,30]
[394165471,1763338254948,-1000.0,0.00037339,30]
[394165472,1763338254958,-1003.34767189,0.00037339,30]
[394165473,1763338254969,-1007.44003484,0.00037339,30]
[394165474,1763338254980,-1021.48094545,0.00037339,30]
[394165475,1763338254991,-1000.0,0.00037339,30]
[394165476,1763338255000,-1000.0,0.00037339,30]
[394165477,1763338255010,-1377.28371524,0.00037339,30]
[394165478,1763338255020,-1238.94673258,0.0003737,2]
[394165479,1763338255030,-200.0,0.0003737,2]
[394165480,1763338255039,-200.0,0.0003737,2]
[394165481,1763338255048,-200.0,0.0003737,2]
[394165482,1763338255058,-200.0,0.0003737,2]
[394165483,1763338255067,-150.0,0.00037384,30]
[394165484,1763338255077,-384.0,0.00037397,30]
[394165485,1763338255086,-177.32,0.00037397,2]
[394165486,1763338255095,-177.32,0.00037397,2]
[394165487,1763338255106,-177.32,0.00037397,2]
[394165488,1763338255115,-177.32,0.00037397,2]
[394165489,1763338255125,-177.32,0.00037397,2]
[394165490,1763338255134,-177.32,0.00037397,2]
[394165491,1763338255143,-177.32,0.00037397,2]
[394165492,1763338255152,-177.32,0.00037397,2]
[394165493,1763338255161,-177.32,0.00037397,2]
[394165494,1763338255170,-177.32,0.00037397,2]
[394165495,1763338255180,-177.32,0.00037397,2]
[394165496,1763338255189,-177.32,0.00037397,2]
[394165497,1763338255199,-177.32,0.00037397,2]
[394165498,1763338255208,-177.32,0.00037397,2]
[394165499,1763338255218,-177.32,0.00037397,2]
[394165500,1763338255227,-177.32,0.00037397,2]
[394165501,1763338255236,-177.32,0.00037397,2]
[394165502,1763338255246,-177.32,0.00037397,2]
[394165503,1763338255255,-177.32,0.00037397,2]
[394165504,1763338255266,-177.32,0.00037397,2]
[394165505,1763338255277,-177.32,0.00037397,2]
[394165506,1763338255287,-177.32,0.00037397,2]
[394165507,1763338255297,-177.32,0.00037397,2]
[394165508,1763338255307,-177.32,0.00037397,2]
[394165509,1763338255318,-177.32,0.00037397,2]
[394165510,1763338255330,-177.32,0.00037397,2]
[394165511,1763338255339,-177.32,0.00037397,2]
[394165512,1763338255348,-177.32,0.00037397,2]
[394165513,1763338255358,-1000.0,0.000374,120]
[394165514,1763338255367,-177.32,0.00037425,2]
[394165515,1763338255376,-152.0,0.00037441,6]
[394165516,1763338255386,-175.94451,0.0003745,2]
[394165517,1763338255395,-150.0,0.00037468,2]
[394165518,1763338255405,-150.0,0.00037477,2]
[394165519,1763338255414,-150.0,0.00037477,2]
[394165520,1763338255423,-150.0,0.00037477,2]
[394165521,1763338255433,-300.0,0.00037477,2]
[394165522,1763338255442,-995.65004,0.00037488,30]
[394165523,1763338255452,-500.0,0.00037534,2]
[394165524,1763338255462,-500.0,0.00037534,2]
[394165525,1763338255471,-500.0,0.00037534,2]
[394165526,1763338255481,-500.0,0.00037534,2]
[394165527,1763338255490,-500.0,0.00037534,2]
[394165528,1763338255500,-1000.0,0.00037534,2]
[394165529,1763338255509,-151.0,0.00037534,31]
[394165530,1763338255519,-423.506356,0.00037534,31]
[394165531,1763338255528,-151.0,0.00037534,31]
[394165532,1763338255537,-423.506356,0.00037534,31]
[394165533,1763338255546,-423.506356,0.00037534,31]
[394165534,1763338255555,-423.506356,0.00037534,31]
[394165535,1763338255564,-151.0,0.00037534,31]
[394165536,1763338255574,-151.0,0.00037534,31]
[394165537,1763338255582,-151.0,0.00037534,31]
[394165538,1763338255592,-151.0,0.00037534,31]
[394165539,1763338255601,-153.498828,0.00037534,31]
[394165540,1763338255610,-274.24725,0.00037534,31]
[394165541,1763338255619,-151.0,0.00037534,31]
[394165542,1763338255629,-151.0,0.00037534,31]
[394165543,1763338255639,-151.0,0.00037534,31]
[394165544,1763338255648,-158.771394,0.00037534,31]
[394165545,1763338255658,-151.0,0.00037534,31]
[394165546,1763338255667,-151.0,0.00037534,10]
[394165547,1763338255682,-151.0,0.00037534,31]
[394165548,1763338255692,-151.0,0.00037534,10]
[394165549,1763338255702,-151.0,0.00037534,30]
[394165550,1763338255713,-195.600079,0.00037534,31]
[394165551,1763338255723,-3990.69,0.00037534,2]
[394165552,1763338255732,-165.064262,0.00037534,31]
[394165553,1763338255742,-165.064262,0.00037534,31]
[394165554,1763338255754,-1350.260439,0.00037534,28]
[394165555,1763338255764,-165.064262,0.00037534,31]
[394165556,1763338255774,-1350.260439,0.00037534,28]
[394165557,1763338255784,-165.064262,0.00037534,31]
[394165558,1763338255794,-1350.260439,0.00037534,28]
[394165559,1763338255804,-1350.260439,0.00037534,28]
[394165560,1763338255814,-151.0,0.00037534,31]
[394165561,1763338255824,-151.0,0.00037534,31]
[394165562,1763338255835,-151.0,0.00037534,31]
[394165563,1763338255846,-151.0,0.00037534,31]
[394165564,1763338255855,-151.0,0.00037534,31]
[394165565,1763338255864,-151.0,0.00037534,31]
[394165566,1763338255873,-151.0,0.00037534,31]
[394165567,1763338255883,-151.0,0.00037534,31]
[394165568,1763338255893,-151.0,0.00037534,31]
[394165569,1763338255902,-500.0,0.00037534,2]
[394165570,1763338255912,-300.0,0.00037534,2]
[394165571,1763338255921,-1006.13,0.00037534,2]
[394165572,1763338255931,-300.0,0.00037534,2]
[394165573,1763338255941,-500.0,0.00037534,2]
[394165574,1763338255950,-168.0,0.00037597,120]
[394165575,1763338255960,-168.0,0.00037597,120]
[394165576,1763338255970,-293.0,0.00037626,120]
[394165577,1763338255980,-995.65004,0.00037688,30]
[394165578,1763338255990,-589.93651014,0.0003772,120]
[394165579,1763338256000,-638.71630148,0.0003772,120]
[394165580,1763338256010,-200.0,0.00037744,2]
[394165581,1763338256020,-200.0,0.00037744,2]
[394165582,1763338256030,-200.0,0.00037744,2]
[394165583,1763338256040,-200.0,0.00037744,2]
[394165584,1763338256050,-515.52064469,0.00037806,2]
[394165585,1763338256060,-500.0,0.00037808,2]
[394165586,1763338256070,-500.0,0.00037808,2]
[394165587,1763338256079,-500.0,0.00037808,2]
[394165588,1763338256090,-500.0,0.00037808,2]
[394165589,1763338256099,-500.0,0.00037808,2]
[394165590,1763338256109,-1000.0,0.00037808,2]
[394165591,1763338256119,-3990.69,0.00037808,2]
[394165592,1763338256129,-500.0,0.00037808,2]
[394165593,1763338256138,-300.0,0.00037808,2]
[394165594,1763338256149,-1006.13,0.00037808,2]
[394165595,1763338256159,-300.0,0.00037808,2]
[394165596,1763338256169,-500.0,0.00037808,2]
[394165597,1763338256180,-727.29624766,0.00037845,5]
[394165598,1763338256190,-995.65004,0.00037888,30]
[394165599,1763338256200,-2600.0,0.000379,13]
[394165600,1763338256211,-1932.19924207,0.000379,2]
[394165601,1763338256221,-175.94451,0.0003794,2]
[394165602,1763338256231,-49288.43765194,0.0003797,2]
[394165603,1763338256241,-151.0,0.0003797,31]
[394165604,1763338256250,-151.0,0.0003797,31]
[394165605,1763338256260,-151.0,0.0003797,31]
[394165606,1763338256271,-151.0,0.0003797,31]
[394165607,1763338256285,-151.0,0.0003797,31]
[394165608,1763338256297,-151.0,0.0003797,31]
[394165609,1763338256307,-151.0,0.0003797,31]
[394165610,1763338256317,-151.0,0.0003797,31]
[394165611,1763338256326,-151.0,0.0003797,31]
[394165612,1763338256338,-151.0,0.0003797,31]
[394165613,1763338256347,-151.0,0.0003797,31]
[394165614,1763338256357,-151.0,0.0003797,31]
[394165615,1763338256366,-151.0,0.0003797,31]
[394165616,1763338256376,-151.0,0.0003797,31]
[394165617,1763338256386,-151.0,0.0003797,31]
[394165618,1763338256396,-151.0,0.0003797,31]
[394165619,1763338256406,-151.0,0.0003797,31]
[394165620,1763338256416,-151.0,0.0003797,31]
[394165621,1763338256426,-151.0,0.0003797,31]
[394165622,1763338256436,-151.0,0.0003797,31]
[394165623,1763338256446,-151.0,0.0003797,31]
[394165624,1763338256456,-151.0,0.0003797,31]
[394165625,1763338256466,-162.727591,0.0003797,31]
[394165626,1763338256476,-151.0,0.0003797,31]
[394165627,1763338256486,-151.0,0.0003797,31]
[394165628,1763338256497,-162.278462,0.0003797,31]
[394165629,1763338256507,-151.0,0.0003797,31]
[394165630,1763338256516,-774.198032,0.0003797,31]
[394165631,1763338256527,-774.198032,0.0003797,31]
[394165632,1763338256536,-774.198032,0.0003797,31]
[394165633,1763338256546,-774.198032,0.0003797,31]
[394165634,1763338256556,-1356.593843,0.0003797,31]
[394165635,1763338256566,-151.0,0.0003797,31]
[394165636,1763338256576,-1356.593843,0.0003797,31]
[394165637,1763338256587,-151.0,0.0003797,31]
[394165638,1763338256597,-151.0,0.0003797,31]
[394165639,1763338256607,-1356.593843,0.0003797,31]
[394165640,1763338256617,-1356.593843,0.0003797,31]
[394165641,1763338256627,-207.260721,0.0003797,31]
[394165642,1763338256638,-207.260721,0.0003797,31]
[394165643,1763338256648,-207.260721,0.0003797,31]
[394165644,1763338256658,-207.260721,0.0003797,31]
[394165645,1763338256668,-151.0,0.0003797,31]
[394165646,1763338256681,-911.058845,0.0003797,31]
[394165647,1763338256690,-911.058845,0.0003797,31]
[394165648,1763338256700,-151.0,0.0003797,31]
[394165649,1763338256710,-911.058845,0.0003797,31]
[394165650,1763338256721,-911.058845,0.0003797,31]
[394165651,1763338256731,-151.0,0.0003797,31]
[394165652,1763338256743,-151.0,0.0003797,31]
[394165653,1763338256754,-151.0,0.0003797,31]
[394165654,1763338256763,-151.0,0.0003797,31]
[394165655,1763338256773,-200.682507,0.0003797,31]
[394165656,1763338256783,-200.682507,0.0003797,31]
[394165657,1763338256793,-200.682507,0.0003797,31]
[394165658,1763338256803,-200.682507,0.0003797,31]
[394165659,1763338256814,-151.0,0.0003797,31]
[394165660,1763338256824,-151.0,0.0003797,31]
[394165661,1763338256835,-151.0,0.0003797,31]
[394165662,1763338256844,-151.0,0.0003797,31]
[394165663,1763338256854,-151.0,0.0003797,31]
[394165664,1763338256864,-151.0,0.0003797,31]
[394165665,1763338256874,-151.0,0.0003797,31]
[394165666,1763338256883,-331.436966,0.0003797,31]
[394165667,1763338256893,-151.0,0.0003797,31]
[394165668,1763338256903,-331.436966,0.0003797,31]
[394165669,1763338256912,-331.436966,0.0003797,31]
[394165670,1763338256922,-159.656057,0.0003797,31]
[394165671,1763338256932,-331.436966,0.0003797,31]
[394165672,1763338256942,-151.0,0.0003797,31]
[394165673,1763338256952,-151.0,0.0003797,31]
[394165674,1763338256962,-198.244511,0.0003797,31]
[394165675,1763338256972,-151.0,0.0003797,31]
[394165676,1763338256982,-198.244511,0.0003797,31]
[394165677,1763338256993,-151.0,0.0003797,31]
[394165678,1763338257003,-198.244511,0.0003797,31]
[394165679,1763338257013,-198.244511,0.0003797,31]
[394165680,1763338257023,-151.0,0.0003797,31]
[394165681,1763338257035,-151.0,0.0003797,31]
[394165682,1763338257045,-151.0,0.0003797,31]
[394165683,1763338257055,-151.0,0.0003797,31]
[394165684,1763338257066,-151.0,0.0003797,31]
[394165685,1763338257075,-151.0,0.0003797,31]
[394165686,1763338257085,-526.139129,0.0003797,31]
[394165687,1763338257095,-526.139129,0.0003797,31]
[394165688,1763338257105,-526.139129,0.0003797,31]
[394165689,1763338257115,-151.0,0.0003797,31]
[394165690,1763338257125,-526.139129,0.0003797,31]
[394165691,1763338257135,-151.0,0.0003797,31]
[394165692,1763338257145,-151.0,0.0003797,31]
[394165693,1763338257155,-991.526894,0.0003797,30]
[394165694,1763338257165,-151.0,0.0003797,31]
[394165695,1763338257175,-991.526894,0.0003797,30]
[394165696,1763338257184,-280.790532,0.0003797,31]
[394165697,1763338257194,-151.0,0.0003797,31]
[394165698,1763338257204,-991.526894,0.0003797,30]
[394165699,1763338257213,-280.790532,0.0003797,31]
[394165700,1763338257223,-151.0,0.0003797,31]
[394165701,1763338257233,-991.526894,0.0003797,30]
[394165702,1763338257243,-280.790532,0.0003797,31]
[394165703,1763338257253,-242.80112,0.0003797,31]
[394165704,1763338257263,-280.790532,0.0003797,31]
[394165705,1763338257272,-151.0,0.0003797,31]
[394165706,1763338257282,-161.544794,0.0003797,31]
[394165707,1763338257292,-252.113073,0.0003797,31]
[394165708,1763338257302,-161.544794,0.0003797,31]
[394165709,1763338257312,-252.113073,0.0003797,31]
[394165710,1763338257322,-161.544794,0.0003797,31]
[394165711,1763338257332,-252.113073,0.0003797,31]
[394165712,1763338257342,-161.544794,0.0003797,31]
[394165713,1763338257352,-252.113073,0.0003797,31]
[394165714,1763338257363,-164.178073,0.0003797,31]
[394165715,1763338257373,-151.0,0.0003797,31]
[394165716,1763338257383,-151.0,0.0003797,31]
[394165717,1763338257394,-151.0,0.0003797,31]
[394165718,1763338257403,-151.0,0.0003797,31]
[394165719,1763338257413,-151.0,0.0003797,31]
[394165720,1763338257425,-151.0,0.0003797,31]
[394165721,1763338257435,-151.0,0.0003797,31]
[394165722,1763338257445,-151.0,0.0003797,31]
[394165723,1763338257455,-151.0,0.0003797,31]
[394165724,1763338257465,-199.939899,0.0003797,31]
[394165725,1763338257475,-151.0,0.0003797,31]
[394165726,1763338257487,-151.0,0.0003797,31]
[394165727,1763338257498,-151.0,0.0003797,31]
[394165728,1763338257507,-163.0,0.00037973,30]
[394165729,1763338257518,-506.23197387,0.00037988,120]
[394165730,1763338258207,-151.0,0.000249,7]
[394165731,1763338258217,-129.891,0.000249,7]
[394165732,1763338258229,-21.109,0.000249,7]
[394165733,1763338258240,-394.3282665,0.0003371,2]
[394165734,1763338258254,-165.6717335,0.0003371,2]
[394165735,1763338258265,-213.244336,0.00034319,31]
[394165736,1763338258275,-560.0,0.0003671,2]
[394165737,1763338258286,-123.03651115,0.00037988,120]
[394165738,1763338258296,-166.493107,0.0003799,2]
[394165739,1763338258321,-156.480063,0.000249,7]
[394165740,1763338258331,-115.57930517,0.0003799,2]
[394165741,1763338258341,-796.27210297,0.00038,3]
[394165742,1763338258350,-166.0,0.00038,30]
[394165743,1763338258359,-203242.50591517,0.00038,2]
[394165744,1763338258370,-51460.4001105,0.00038,2]
[394165745,1763338258380,-415.0,0.00038,30]
[394165746,1763338258389,-244.604031,0.00038,31]
[394165747,1763338258399,-244.604031,0.00038,31]
[394165748,1763338258408,-244.604031,0.00038,31]
[394165749,1763338258418,-244.604031,0.00038,31]
[394165750,1763338258427,-151.0,0.00038,31]
[394165751,1763338258436,-151.0,0.00038,31]
[394165752,1763338258446,-151.0,0.00038,31]
[394165753,1763338258455,-151.0,0.00038,31]
[394165754,1763338258464,-151.0,0.00038,31]
[394165755,1763338258475,-151.0,0.00038,31]
[394165756,1763338258484,-365.1992,0.00038,31]
[394165757,1763338258495,-151.0,0.00038,31]
[394165758,1763338258504,-365.1992,0.00038,31]
[394165759,1763338258514,-365.1992,0.00038,31]
[394165760,1763338258523,-365.1992,0.00038,31]
[394165761,1763338258533,-151.000002,0.00038,31]
[394165762,1763338258542,-500.0,0.00038,120]
[394165763,1763338258552,-151.0,0.00038,31]
[394165764,1763338258561,-172.15062,0.00038,31]
[394165765,1763338258570,-151.0,0.00038,31]
[394165766,1763338258580,-151.0,0.00038,31]
[394165767,1763338258590,-201.350748,0.00038,15]
[394165768,1763338258600,-151.0,0.00038,31]
[394165769,1763338258610,-151.0,0.00038,31]
[394165770,1763338258619,-217.173753,0.00038,31]
[394165771,1763338258629,-201.350748,0.00038,15]
[394165772,1763338258638,-151.0,0.00038,31]
[394165773,1763338258648,-201.350748,0.00038,15]
[394165774,1763338258658,-201.350748,0.00038,15]
[394165775,1763338258668,-151.0,0.00038,31]
[394165776,1763338258681,-151.0,0.00038,31]
[394165777,1763338258690,-151.0,0.00038,31]
[394165778,1763338258700,-151.0,0.00038,31]
[394165779,1763338258711,-151.0,0.00038,31]
[394165780,1763338258721,-160.994906,0.00038,31]
[394165781,1763338258731,-151.0,0.00038,31]
[394165782,1763338258741,-151.0,0.00038,31]
[394165783,1763338258753,-210.075336,0.00038,31]
[394165784,1763338258762,-151.0,0.00038,31]
[394165785,1763338258772,-151.0,0.00038,31]
[394165786,1763338258782,-151.0,0.00038,31]
[394165787,1763338258792,-151.0,0.00038,31]
[394165788,1763338258801,-151.0,0.00038,31]
[394165789,1763338258811,-151.0,0.00038,31]
[394165790,1763338258820,-151.0,0.00038,31]
[394165791,1763338258830,-151.0,0.00038,31]
[394165792,1763338258839,-151.0,0.00038,31]
[394165793,1763338258849,-151.0,0.00038,31]
[394165794,1763338258859,-151.0,0.00038,31]
[394165795,1763338258869,-151.0,0.00038,31]
[394165796,1763338258879,-151.0,0.00038,31]
[394165797,1763338258887,-320.063734,0.00038,31]
[394165798,1763338258896,-320.063734,0.00038,31]
[394165799,1763338258906,-320.063734,0.00038,31]
[394165800,1763338258916,-320.063734,0.00038,31]
[394165801,1763338258925,-151.0,0.00038,31]
[394165802,1763338258935,-151.0,0.00038,31]
[394165803,1763338258945,-151.0,0.00038,31]
[394165804,1763338258954,-151.0,0.00038,31]
[394165805,1763338258963,-619.688959,0.00038,31]
[394165806,1763338258973,-1471.1498,0.00038,31]
[394165807,1763338258983,-619.688959,0.00038,31]
[394165808,1763338258992,-1471.1498,0.00038,31]
[394165809,1763338259003,-619.688959,0.00038,31]
[394165810,1763338259013,-1471.1498,0.00038,31]
[394165811,1763338259023,-619.688959,0.00038,31]
[394165812,1763338259033,-1471.1498,0.00038,31]
[394165813,1763338259043,-151.0,0.00038,30]
[394165814,1763338259053,-210.48475,0.00038,31]
[394165815,1763338259062,-210.48475,0.00038,31]
[394165816,1763338259072,-151.0,0.00038,31]
[394165817,1763338259080,-210.48475,0.00038,31]
[394165818,1763338259089,-210.48475,0.00038,31]
[394165819,1763338259099,-151.0,0.00038,31]